bitfinex/quotes_ETHUSD_20211001
["timestamp","ask_amount","ask_price","bid_price","bid_amount"]
[1633057951070,0.00217026,3000.3,3000.2,0.19231841]
[1633057952273,0.00217026,3000.3,3000.2,0.18062006]
[1633057961242,0.00217026,3000.3,3000.2,0.17286425]
[1633057961647,0.00217026,3000.3,3000.2,0.16509895]
[1633057965449,0.77660803,3000.3,3000.2,0.16509895]
[1633057966250,0.00217026,3000.3,3000.2,0.16509895]
[1633057971859,0.00217026,3000.3,3000.2,5.16538895]
[1633057974067,3.3340647,3000.6,3000.5,0.72477287]
[1633057974266,0.003,3001.0,3000.5,3.37480176]
[1633057974463,0.003,3001.0,3000.8,0.079913]
[1633057974666,0.003,3001.0,3000.9,0.201]
[1633057975264,0.003,3001.0,3000.9,5.19975]
[1633057975864,0.003,3001.0,3000.9,6.49375]
[1633057976865,0.003,3001.0,3000.9,8.51202963]
[1633057977065,0.003,3001.0,3000.9,5.19975]
[1633057978665,0.003,3001.0,3000.9,0.201]
[1633057981871,0.003,3001.0,3000.6,0.201]
[1633057982272,3.3331979,3000.8,3000.6,0.201]
[1633057982474,4.5537979,3000.8,3000.5,0.72477287]
[1633057982671,2.39152226,3000.7,3000.5,0.72477287]
[1633057983473,0.72477287,3000.5,3000.1,0.201]
[1633057983676,0.72477287,3000.5,2999.5,0.003]
[1633057983677,2.50617445,3000.4,2999.5,0.003]
[1633057983974,2.50617445,3000.4,2999.1,0.003]
[1633057983975,2.92377998,3000.3,2999.1,0.003]
[1633057984174,4.70653099,3000.2,2999.1,0.003]
[1633057984373,1.92389076,3000.1,2999.1,0.003]
[1633057984575,1.92389076,3000.1,2998.9,0.006]
[1633057984576,5.00322,2999.1,2998.9,0.006]
[1633057984772,5.00322,2999.1,2998.7,0.006]
[1633057984773,11.89619599,2999.1,2998.7,0.006]
[1633057986180,6.89297599,2999.1,2998.7,0.006]
[1633057987777,5.030178,2999.1,2998.7,0.006]
[1633057987975,5.030178,2999.1,2998.8,0.97172641]
[1633057987976,3.335478,2999.1,2998.8,0.97172641]
[1633057988375,3.335478,2999.1,2998.9,0.006]
[1633057988979,1.44524711,2999.0,2998.9,0.006]
[1633057989178,2.87424711,2999.0,2998.9,0.006]
[1633057989377,2.87424711,2999.0,2998.7,0.006]
[1633057989776,7.87790711,2999.0,2998.7,0.006]
[1633057991979,2.82424711,2999.0,2998.7,0.006]
[1633057993178,1.294,2998.9,2998.7,0.006]
[1633057993379,5.00437,2998.8,2998.7,0.006]
[1633057994780,3.536478,2999.1,2998.7,0.006]
[1633057995179,1.294,2998.9,2998.7,0.006]
[1633057995385,3.536478,2999.1,2998.7,0.006]
[1633057995579,11.536478,2999.1,2998.7,0.006]
[1633057995779,5.0041,2998.8,2998.7,0.006]
[1633057995980,2.44167284,2998.8,2998.7,0.006]
[1633057996382,1.44167284,2998.8,2998.7,0.006]
[1633057999482,0.82756947,2998.7,2998.0,0.66558512]
[1633057999680,0.82756947,2998.7,2998.0,7.33658512]
[1633057999882,0.003,2998.5,2998.0,7.33658512]
[1633058000483,0.003,2998.5,2998.2,1.69086]
[1633058001482,0.003,2998.5,2998.2,1.765327]
[1633058002480,0.003,2998.5,2998.2,1.69086]
[1633058002880,0.87190279,2998.5,2998.2,1.59086]
[1633058003285,3.3360288,2998.4,2998.2,1.59086]
[1633058003881,0.003,2998.5,2998.2,1.59086]
[1633058004681,0.003,2998.5,2998.0,0.66558512]
[1633058004880,3.3360608,2998.4,2998.0,0.66558512]
[1633058005482,6.4661608,2998.4,2997.9,0.006]
[1633058005682,1.65182617,2998.1,2997.9,0.006]
[1633058005883,2.17156069,2998.3,2997.9,0.006]
[1633058006082,6.4661608,2998.4,2997.9,0.006]
[1633058006285,2.14836989,2998.3,2997.9,0.006]
[1633058006550,12.6634608,2998.4,2997.9,0.74668425]
[1633058006682,4.6634608,2998.4,2997.9,0.74668425]
[1633058006882,3.9609608,2998.4,2997.9,5.75040425]
[1633058007084,3.3360608,2998.4,2997.9,0.74668425]
[1633058007284,1.97103995,2998.2,2997.9,0.74668425]
[1633058008884,3.3360608,2998.4,2997.9,0.74668425]
[1633058009885,1.0,2998.3,2997.9,0.74668425]
[1633058010087,4.94321332,2998.4,2997.9,0.74668425]
[1633058012086,4.94321332,2998.4,2997.9,5.75035425]
[1633058012686,4.94321332,2998.4,2997.9,0.74668425]
[1633058013689,7.05683092,2998.4,2997.9,0.74668425]
[1633058013886,4.94321332,2998.4,2997.9,0.74668425]
[1633058014287,5.00466,2998.3,2997.9,0.74668425]
[1633058014689,7.13750591,2998.3,2997.9,0.74668425]
[1633058015553,5.00466,2998.3,2997.9,0.74668425]
[1633058015690,4.94321332,2998.4,2997.9,0.74668425]
[1633058017290,7.06948199,2998.4,2997.9,0.74668425]
[1633058017491,7.06948199,2998.4,2997.9,0.69668425]
[1633058018089,12.07371199,2998.4,2997.9,0.69668425]
[1633058018550,9.94744332,2998.4,2997.9,0.69668425]
[1633058019092,4.94321332,2998.4,2997.9,0.69668425]
[1633058019492,7.05921467,2998.4,2997.9,0.69668425]
[1633058019690,7.05640298,2998.4,2997.9,0.69668425]
[1633058019893,4.94321332,2998.4,2997.9,0.69668425]
[1633058020692,4.94321332,2998.4,2997.9,5.70076425]
[1633058022294,4.94321332,2998.4,2997.9,0.69668425]
[1633058022493,9.94749332,2998.4,2997.8,0.006]
[1633058022899,4.94321332,2998.4,2997.8,0.006]
[1633058023096,7.07877107,2998.4,2997.8,0.006]
[1633058023296,7.07877107,2998.4,2997.7,0.163]
[1633058023494,1.91219554,2997.9,2997.7,1.15351775]
[1633058024095,2.14817022,2998.1,2997.7,1.15351775]
[1633058024293,2.14632175,2998.3,2997.7,1.15351775]
[1633058024695,3.3360608,2998.4,2997.7,1.15351775]
[1633058025096,1.69235286,2998.2,2997.7,1.15351775]
[1633058025297,1.69235286,2998.2,2997.7,0.163]
[1633058025502,2.15596484,2998.1,2997.7,0.163]
[1633058026700,7.16080484,2998.1,2997.7,0.163]
[1633058027557,5.00484,2998.1,2997.7,0.163]
[1633058028701,19.70195546,2998.2,2997.6,4.15229028]
[1633058028702,0.80034531,2998.0,2997.6,4.15229028]
[1633058029304,8.0,2998.1,2997.6,4.15229028]
[1633058029504,5.02849546,2998.2,2997.6,4.15229028]
[1633058029701,3.3365463,2997.9,2997.6,5.77418892]
[1633058030301,3.3365463,2997.9,2997.7,0.85600592]
[1633058031705,3.3365463,2997.9,2997.8,1.73857429]
[1633058032102,5.02905386,2998.2,2997.8,1.73857429]
[1633058032103,3.336701,2998.2,2997.8,1.73857429]
[1633058032905,3.336701,2998.2,2997.8,1.81211429]
[1633058034505,3.336701,2998.2,2997.8,0.07354]
[1633058035505,3.336701,2998.2,2997.8,1.51716224]
[1633058036107,3.336701,2998.2,2997.7,0.85600592]
[1633058036306,4.220801,2998.2,2997.6,4.15229028]
[1633058036704,6.33794882,2998.2,2997.6,4.15229028]
[1633058037110,1.96232918,2997.8,2997.6,4.15229028]
[1633058037307,0.81940306,2997.7,2997.6,4.15229028]
[1633058038306,5.49878951,2997.6,2997.5,0.009]
[1633058038508,9.2089577,2997.6,2997.5,0.009]
[1633058038707,9.1989577,2997.6,2997.5,0.009]
[1633058038906,6.4,2997.5,2997.2,0.006]
[1633058039106,7.37512292,2997.4,2997.2,0.006]
[1633058039307,7.37512292,2997.4,2997.0,0.009]
[1633058039308,0.051,2996.6,2996.1,0.006]
[1633058039573,0.02591876,2996.4,2996.1,0.006]
[1633058039711,2.40360577,2996.4,2996.1,0.006]
[1633058039908,8.3475633,2996.5,2996.1,0.006]
[1633058040111,3.3390233,2996.5,2996.3,0.07611824]
[1633058040309,1.56116569,2996.4,2996.3,0.00213224]
[1633058042110,1.56116569,2996.4,2996.1,0.00248]
[1633058042575,9.2741,2996.5,2996.1,0.00248]
[1633058042710,1.3089,2996.6,2996.1,0.00248]
[1633058042711,0.051,2996.6,2996.3,0.079913]
[1633058042910,0.051,2996.6,2996.1,0.00248]
[1633058043711,1.71590177,2996.5,2996.1,0.00248]
[1633058045111,0.051,2996.6,2996.4,0.71325759]
[1633058045582,0.051,2996.6,2996.3,0.079913]
[1633058045910,0.051,2996.6,2996.3,5.086543]
[1633058047912,0.051,2996.6,2996.3,5.07784885]
[1633058048714,1.72116367,2996.5,2996.3,5.00663]
[1633058049713,0.051,2996.6,2996.3,5.00663]
[1633058050514,0.051,2996.6,2996.4,0.75800357]
[1633058050914,0.051,2996.6,2996.5,5.0064]
[1633058051316,0.051,2996.6,2996.4,0.75800357]
[1633058051715,0.051,2996.6,2996.2,10.01322]
[1633058052917,0.051,2996.6,2996.2,10.7802037]
[1633058053315,0.051,2996.6,2996.2,4.1047237]
[1633058053717,0.051,2996.6,2996.3,5.007]
[1633058054917,0.051,2996.6,2996.3,8.34465]
[1633058055118,0.051,2996.6,2996.3,3.33765]
[1633058055921,0.051,2996.6,2996.2,10.7800137]
[1633058056120,0.051,2996.6,2996.2,0.7669837]
[1633058056920,0.83565909,2996.6,2996.2,0.7669837]
[1633058057120,2.45365909,2996.6,2996.2,0.7669837]
[1633058057721,2.45365909,2996.6,2996.1,0.00248]
[1633058057923,2.45365909,2996.6,2996.1,0.73168878]
[1633058058520,1.72722856,2996.4,2996.1,0.73168878]
[1633058058921,1.72722856,2996.4,2996.1,1.49615579]
[1633058059124,1.72722856,2996.4,2996.1,0.76694701]
[1633058059523,3.10925909,2996.6,2996.1,0.76694701]
[1633058059724,2.3246,2996.6,2996.1,0.76694701]
[1633058059929,2.3246,2996.6,2996.1,5.77408701]
[1633058060124,2.3246,2996.6,2996.1,0.76694701]
[1633058060595,1.49780447,2996.2,2996.1,0.76694701]
[1633058060726,1.49780447,2996.2,2996.1,0.73277797]
[1633058060925,1.49780447,2996.2,2996.1,0.00248]
[1633058061727,2.33235921,2996.2,2996.1,0.00248]
[1633058064328,0.83455474,2996.2,2996.1,0.00248]
[1633058064529,2.3246,2996.6,2996.1,0.00248]
[1633058064731,1.669,2996.6,2996.1,0.00248]
[1633058065330,1.97256529,2996.3,2996.1,0.00248]
[1633058065734,1.669,2996.6,2996.1,0.00248]
[1633058065931,0.051,2996.6,2996.1,0.00248]
[1633058066733,1.49189148,2996.5,2996.3,5.00709]
[1633058069133,0.051,2996.6,2996.4,0.99734323]
[1633058069335,0.051,2996.6,2996.5,1.294]
[1633058069599,0.051,2996.6,2996.4,1.19834323]
[1633058069935,0.051,2996.6,2996.5,8.97830733]
[1633058070133,0.051,2996.6,2996.5,0.72830733]
[1633058070333,0.051,2996.6,2996.5,2.39530625]
[1633058070535,0.051,2996.6,2996.5,8.69526625]
[1633058071133,0.051,2996.6,2996.5,7.40126625]
[1633058071736,0.051,2996.6,2996.5,5.73426733]
[1633058071936,0.051,2996.6,2996.5,5.00596]
[1633058072337,0.051,2996.6,2996.5,5.73254076]
[1633058072602,0.051,2996.6,2996.5,5.00596]
[1633058072738,0.051,2996.6,2996.5,7.54894848]
[1633058073137,0.051,2996.6,2996.5,8.84294848]
[1633058075743,0.051,2996.6,2996.5,10.16033856]
[1633058076151,0.051,2996.6,2996.5,8.84294848]
[1633058076545,0.051,2996.6,2996.5,10.16030261]
[1633058076747,0.051,2996.6,2996.5,8.84294848]
[1633058077145,0.051,2996.6,2996.5,8.84089716]
[1633058077345,0.051,2996.6,2996.5,9.04189716]
[1633058078144,0.051,2996.6,2996.5,10.35936495]
[1633058078946,0.051,2996.6,2996.5,10.06536495]
[1633058079146,0.051,2996.6,2996.5,8.74789716]
[1633058079345,0.051,2996.6,2996.5,7.74789716]
[1633058080346,0.051,2996.6,2996.5,9.04189716]
[1633058083152,0.051,2996.6,2996.5,10.35968568]
[1633058083553,0.051,2996.6,2996.5,9.04189716]
[1633058086055,0.051,2996.6,2996.5,9.0086032]
[1633058086461,0.051,2996.6,2996.5,0.927587]
[1633058086660,0.059694,2996.6,2996.5,0.201]
[1633058086854,0.059694,2996.6,2996.1,0.20348]
[1633058086855,1.254394,2996.6,2996.1,0.20348]
[1633058087254,1.254394,2996.6,2996.4,5.00697]
[1633058087659,1.2457,2996.6,2996.4,5.00697]
[1633058090856,1.2457,2996.6,2996.3,6.67535]
[1633058091057,1.254394,2996.6,2996.1,0.00248]
[1633058091870,0.94744293,2996.4,2996.1,1.95472237]
[1633058092658,0.6399,2996.5,2996.4,0.769065]
[1633058092860,0.051,2996.6,2996.4,0.970065]
[1633058093060,0.051,2996.6,2996.5,6.72760023]
[1633058093260,0.051,2996.6,2996.5,0.72760023]
[1633058093730,0.051,2996.6,2996.5,6.64918565]
[1633058094728,0.051,2996.6,2996.5,5.81360323]
[1633058095931,0.051,2996.6,2996.5,6.60781066]
[1633058096728,0.051,2996.6,2996.5,8.10281066]
[1633058096932,0.051,2996.6,2996.5,9.10281066]
[1633058097331,0.051,2996.6,2996.5,8.81119224]
[1633058097731,0.03589152,2996.6,2996.5,8.81119224]
[1633058100934,0.003,2997.0,2996.6,8.8]
[1633058101135,0.003,2997.0,2996.7,3.53747]
[1633058101336,0.003,2997.0,2996.7,4.53747]
[1633058102039,0.003,2997.0,2996.8,5.0047]
[1633058102235,0.003,2997.0,2996.9,0.201]
[1633058103641,0.003,2997.0,2996.9,5.20554]
[1633058107846,0.003,2997.0,2996.9,0.201]
[1633058108044,0.75586805,2997.0,2996.9,0.201]
[1633058108245,2.04986805,2997.0,2996.4,3.450065]
[1633058108444,0.75586805,2997.0,2996.4,3.450065]
[1633058108844,5.76224805,2997.0,2996.4,3.450065]
[1633058109044,1.87234545,2996.6,2996.4,1.74214739]
[1633058109245,0.01361705,2996.7,2996.4,1.74214739]
[1633058109446,0.01361705,2996.7,2996.4,1.82206039]
[1633058110650,0.01361705,2996.7,2996.4,6.74828739]
[1633058114052,0.01361705,2996.7,2996.4,10.08539739]
[1633058114252,0.003,2997.0,2996.5,5.00533]
[1633058114453,0.003,2997.0,2996.5,5.085243]
[1633058114655,0.01361705,2996.7,2996.5,5.085243]
[1633058115654,0.01361705,2996.7,2996.5,5.00533]
[1633058116056,0.01361705,2996.7,2996.5,5.082836]
[1633058117055,0.01361705,2996.7,2996.5,5.00533]
[1633058119057,0.01361705,2996.7,2996.5,5.083584]
[1633058119657,0.003,2997.0,2996.5,5.083584]
[1633058119856,0.003,2997.0,2996.8,1.46256902]
[1633058120259,0.003,2997.0,2996.5,0.078254]
[1633058120656,0.003,2997.0,2996.4,3.06912967]
[1633058120856,0.003,2997.0,2996.4,1.74214739]
[1633058121057,5.00958,2997.0,2996.4,0.970065]
[1633058121257,1.48047948,2996.6,2996.4,0.970065]
[1633058121657,1.48047948,2996.6,2996.4,0.769065]
[1633058122063,0.81771235,2996.5,2996.4,0.769065]
[1633058122657,1.48047948,2996.6,2996.4,0.769065]
[1633058123257,0.003,2997.0,2996.4,0.769065]
[1633058124462,0.9513666,2996.7,2996.4,0.769065]
[1633058124662,2.81172155,2996.7,2996.4,0.760453]
[1633058124869,2.81172155,2996.7,2996.4,0.7553249]
[1633058125063,0.01361705,2996.6,2996.4,0.7553249]
[1633058127327,0.01361705,2996.6,2996.5,0.73024983]
[1633058128331,1.30761705,2996.6,2996.5,0.73024983]
[1633058128531,1.30761705,2996.6,2996.4,0.6553249]
[1633058128532,3.25996667,2996.6,2996.4,0.6553249]
[1633058128731,1.65861705,2996.6,2996.4,0.6553249]
[1633058128931,1.95205893,2996.5,2996.4,0.6553249]
[1633058129532,3.24605893,2996.5,2996.4,0.6553249]
[1633058129935,1.95205893,2996.5,2996.4,0.6553249]
[1633058130336,1.96567598,2996.5,2996.4,0.6553249]
[1633058130533,3.25967598,2996.5,2996.4,0.6553249]
[1633058132135,3.20967598,2996.5,2996.4,0.6553249]
[1633058132335,1.91567598,2996.5,2996.4,0.6553249]
[1633058132535,0.01361705,2996.5,2996.4,0.6553249]
[1633058135740,0.01361705,2996.5,2996.4,2.1503249]
[1633058136539,0.01361705,2996.5,2996.4,9.17061973]
[1633058136941,0.5306854,2997.5,2996.9,0.9668029]
[1633058137139,3.42151741,2997.6,2997.0,3.33688]
[1633058137339,3.42151741,2997.6,2997.0,3.33988]
[1633058137739,1.83980533,2997.4,2997.0,4.79707599]
[1633058137938,1.83980533,2997.4,2997.0,3.33988]
[1633058138542,1.83980533,2997.4,2997.0,8.3452]
[1633058138940,1.73980533,2997.4,2997.0,0.003]
[1633058139341,1.73980533,2997.4,2996.7,0.003]
[1633058139541,0.01166449,2997.0,2996.4,0.6553249]
[1633058139740,0.01166449,2997.0,2996.5,0.201]
[1633058139943,0.01466449,2997.0,2996.5,0.201]
[1633058140741,0.01466449,2997.0,2996.9,1.44042447]
[1633058140942,0.01466449,2997.0,2996.8,1.00005697]
[1633058141144,0.01466449,2997.0,2996.8,6.00584697]
[1633058142143,0.01466449,2997.0,2996.9,1.84343424]
[1633058142747,0.01466449,2997.0,2996.8,6.00584697]
[1633058143144,0.01466449,2997.0,2996.8,9.34257927]
[1633058143747,0.01466449,2997.0,2996.8,6.00584697]
[1633058144545,0.01466449,2997.0,2996.8,5.99806297]
[1633058144945,0.01466449,2997.0,2996.9,1.83705301]
[1633058145146,0.003,2997.0,2996.8,5.99806297]
[1633058145946,0.003,2997.0,2996.9,10.094]
[1633058146146,0.003,2997.0,2996.9,12.1338]
[1633058146349,0.003,2997.5,2997.0,8.8]
[1633058146548,0.003,2997.5,2997.1,1.201]
[1633058146745,0.003,2997.5,2997.1,3.50061294]
[1633058146946,0.003,2997.5,2997.4,10.15149766]
[1633058147146,0.003,2997.5,2997.4,7.97212711]
[1633058147346,0.003,2997.5,2997.4,8.97212711]
[1633058148146,0.003,2997.5,2997.4,10.26612711]
[1633058151350,0.00387,2997.8,2997.6,3.97846281]
[1633058151554,0.00387,2997.8,2997.7,2.495]
[1633058151749,0.00387,2997.8,2997.7,9.84000165]
[1633058151949,0.003,2998.0,2997.8,8.8]
[1633058152149,0.003,2998.0,2997.9,10.85635565]
[1633058152349,0.003,2998.5,2998.0,8.8]
[1633058152549,0.003,2998.5,2998.2,10.0040079]
[1633058152752,0.003,2998.5,2998.3,0.201]
[1633058152951,0.003,2998.5,2998.4,0.92381158]
[1633058153150,0.003,2998.5,2998.4,1.12481158]
[1633058153350,0.003,2998.5,2998.4,3.1071737]
[1633058153550,0.003,2998.5,2998.4,4.1071737]
[1633058153751,0.003,2998.5,2998.4,3.1071737]
[1633058153951,0.003,2998.5,2998.4,5.4011737]
[1633058154154,0.003,2998.5,2998.4,4.4011737]
[1633058154351,0.003,2998.5,2998.4,5.4011737]
[1633058157953,0.003,2998.5,2998.4,4.1071737]
[1633058158354,0.003,2998.5,2998.4,5.4011737]
[1633058158552,0.003,2998.5,2998.4,4.1071737]
[1633058158753,0.003,2999.0,2998.5,8.35]
[1633058158954,0.003,2999.0,2998.8,3.33406]
[1633058159153,0.003,2999.0,2998.9,0.201]
[1633058159354,0.003,2999.0,2998.9,1.201]
[1633058159552,0.003,2999.0,2998.9,4.12886422]
[1633058159753,0.003,2999.0,2998.9,5.11292847]
[1633058160353,0.003,2999.0,2998.9,10.11400847]
[1633058161756,0.006,2999.2,2998.9,10.11400847]
[1633058161957,0.006,2999.9,2999.4,6.6672174]
[1633058161958,0.001,2999.9,2999.4,6.6672174]
[1633058162155,0.001,2999.9,2999.5,2.35792681]
[1633058162356,0.001,2999.9,2999.6,0.201]
[1633058162556,0.009,3000.0,2999.7,0.035961]
[1633058162755,0.009,3000.0,2999.8,1.78881582]
[1633058162955,0.009,3000.0,2999.9,0.7915874]
[1633058163157,0.006,3000.1,2999.9,0.9925874]
[1633058163357,0.006,3000.1,2999.9,8.6579471]
[1633058164159,0.006,3000.1,2999.9,11.03872029]
[1633058164359,0.006,3000.1,2999.9,8.6579471]
[1633058164563,0.006,3000.1,3000.0,6.29294]
[1633058164760,0.006,3000.1,3000.0,6.49394]
[1633058164963,0.006,3000.1,3000.0,7.49394]
[1633058165161,0.006,3000.2,3000.1,6.45]
[1633058165361,0.006,3000.2,3000.1,4.20487684]
[1633058165662,0.006,3000.2,3000.1,4.162]
[1633058165862,0.006,3000.2,3000.1,2.868]
[1633058166063,0.006,3000.2,3000.1,1.868]
[1633058166261,0.006,3000.2,3000.1,2.868]
[1633058166661,0.006,3000.2,3000.1,1.868]
[1633058166864,0.006,3000.2,3000.1,1.201]
[1633058167065,0.006,3000.2,3000.1,6.86573]
[1633058167464,0.006,3000.2,3000.1,7.86573]
[1633058168863,0.006,3000.3,3000.1,7.86573]
[1633058169063,0.006,3000.3,3000.2,1.0]
[1633058169264,0.006,3000.3,3000.2,1.201]
[1633058170065,0.004,3001.0,3000.8,0.75342676]
[1633058170265,0.004,3001.0,3000.8,4.08575676]
[1633058170465,0.004,3001.0,3000.9,6.87933325]
[1633058172930,0.004,3001.0,3000.9,4.31055668]
[1633058173326,0.004,3001.0,3000.8,10.75040676]
[1633058173927,0.004,3001.0,3000.8,12.46394004]
[1633058174327,0.004,3001.0,3000.8,9.99698]
[1633058175136,0.004,3001.0,3000.8,3.33233]
[1633058175534,0.004,3001.0,3000.9,0.201]
[1633058175935,0.004,3001.0,3000.9,1.94073974]
[1633058176538,0.004,3001.0,3000.9,0.201]
[1633058177736,0.004,3001.0,3000.9,1.68219463]
[1633058177937,0.004,3001.0,3000.9,4.01174797]
[1633058178137,0.004,3001.0,3000.9,1.68219463]
[1633058178537,0.004,3001.0,3000.9,4.02127672]
[1633058178739,0.004,3001.0,3000.9,11.40250275]
[1633058178940,0.006,3001.1,3000.9,13.98094463]
[1633058179142,0.006,3001.1,3001.0,6.314]
[1633058179338,0.006,3001.2,3001.0,8.55251]
[1633058179539,0.006,3001.2,3001.1,5.07116681]
[1633058179736,0.006,3001.2,3001.1,2.87216681]
[1633058179939,0.006,3001.2,3001.1,7.86993681]
[1633058180740,0.006,3001.3,3001.2,0.98197278]
[1633058180938,0.006,3001.3,3001.2,1.18297278]
[1633058181138,0.006,3001.3,3001.2,7.84540278]
[1633058181539,0.006,3001.3,3001.2,8.84540278]
[1633058182343,0.006,3001.4,3001.3,4.3]
[1633058182539,0.006,3001.4,3001.3,1.201]
[1633058183340,0.006,3001.4,3001.3,7.86344]
[1633058191751,0.006,3001.4,3001.3,6.86344]
[1633058191950,0.006,3001.4,3001.3,7.86344]
[1633058192150,0.006,3001.4,3001.3,6.86344]
[1633058193151,0.006,3001.4,3001.3,7.82428562]
[1633058193350,0.006,3001.4,3001.3,6.86344]
[1633058194349,0.006,3001.4,3001.3,7.62497458]
[1633058194952,0.006,3001.4,3001.3,8.62497458]
[1633058197553,0.006,3001.4,3001.3,8.57497458]
[1633058209968,0.006,3001.7,3001.5,0.135]
[1633058210167,0.006,3001.7,3001.5,3.59739996]
[1633058210368,0.006,3002.1,3002.0,0.89959623]
[1633058210629,0.006,3002.1,3002.0,5.15067272]
[1633058210767,0.006,3002.1,3002.0,3.82289623]
[1633058210966,0.006,3002.1,3002.0,4.71654159]
[1633058211169,0.006,3002.1,3002.0,11.16018343]
[1633058211967,0.006,3002.2,3002.1,5.25]
[1633058212168,0.006,3002.2,3002.1,0.201]
[1633058212366,0.006,3002.2,3002.1,1.201]
[1633058212969,0.006,3002.2,3002.1,6.19664]
[1633058213373,0.0068914,3002.2,3002.1,6.19664]
[1633058213771,0.0068914,3002.2,3002.1,7.49064]
[1633058213973,0.0068914,3002.2,3002.1,13.04224]
[1633058214369,0.006,3002.6,3002.2,3.33021]
[1633058214570,0.006,3002.6,3002.3,1.201]
[1633058215172,0.006,3002.6,3002.3,8.52223064]
[1633058215371,0.006,3002.6,3002.3,6.19631]
[1633058215774,0.006,3002.6,3002.4,4.7]
[1633058215972,0.006,3002.6,3002.4,1.201]
[1633058220775,0.85870529,3002.6,3002.4,1.201]
[1633058220977,1.0,3002.4,3002.3,4.27105886]
[1633058221174,1.0,3002.4,3002.2,13.320892]
[1633058221175,0.009,3002.5,3002.0,0.89959623]
[1633058221379,0.10582328,3002.1,3002.0,0.89959623]
[1633058221574,0.014694,3003.2,3002.9,1.16887951]
[1633058221784,0.014694,3003.2,3002.9,1.24561351]
[1633058221982,0.014694,3003.2,3002.9,2.76411351]
[1633058222175,0.009,3003.5,3003.3,1.57520963]
[1633058222384,0.009,3003.5,3003.3,6.82030124]
[1633058222650,0.006,3003.7,3003.3,14.56215357]
[1633058222774,2.486,3004.4,3003.7,8.75]
[1633058222975,0.009,3004.5,3004.4,10.68279924]
[1633058223177,0.006,3004.9,3004.4,3.49876336]
[1633058223373,0.006,3004.9,3004.7,5.12534211]
[1633058223573,0.006,3004.9,3004.8,10.96589174]
[1633058223574,2.48,3004.9,3004.8,10.96589174]
[1633058223775,0.009,3005.5,3005.0,13.39006]
[1633058223975,0.009,3005.5,3005.3,5.02]
[1633058224177,0.006,3005.9,3005.3,7.53405144]
[1633058224379,2.51071513,3006.2,3005.5,5.02]
[1633058224576,1.89729491,3006.1,3005.6,5.221]
[1633058224776,1.89842784,3006.0,3005.6,5.221]
[1633058224976,1.89842784,3006.0,3005.7,5.98993]
[1633058224977,4.37842784,3006.0,3005.7,5.98993]
[1633058225177,0.72651448,3006.1,3005.8,2.00873473]
[1633058225377,1.89238071,3006.0,3005.8,3.52762]
[1633058225646,0.006,3006.3,3005.8,3.52762]
[1633058225779,1.89102584,3006.2,3005.9,1.0]
[1633058225978,1.89102584,3006.2,3006.0,0.201]
[1633058226183,0.006,3006.3,3006.0,0.201]
[1633058226578,0.006,3006.3,3006.0,2.53597759]
[1633058226779,0.006,3006.3,3006.0,5.221]
[1633058227178,0.006,3006.3,3006.0,10.21099]
[1633058227378,0.006,3006.3,3006.1,1.0]
[1633058227578,0.006,3006.3,3006.2,0.201]
[1633058227781,0.006,3006.3,3006.2,5.221]
[1633058227980,0.006,3006.3,3006.2,7.3385]
[1633058228180,0.006,3006.4,3006.2,13.62196]
[1633058228382,0.006,3006.7,3006.4,8.75]
[1633058228644,2.281,3007.4,3006.7,6.1]
[1633058228780,2.281,3007.4,3007.3,5.02]
[1633058228980,2.281,3007.4,3006.9,3.32506]
[1633058228981,11.46339999,3007.3,3006.9,3.32506]
[1633058229181,1.86229168,3007.2,3007.0,0.201]
[1633058229382,6.95,3007.1,3006.5,0.003]
[1633058229583,1.86295968,3007.0,3006.0,0.082717]
[1633058229781,0.82032557,3006.4,3005.9,0.006]
[1633058229981,1.294,3006.2,3006.1,0.003]
[1633058230181,2.47764166,3006.4,3006.1,0.003]
[1633058230182,0.82032557,3006.4,3006.1,0.003]
[1633058230380,0.82032557,3006.4,3006.0,0.006]
[1633058230581,0.82032557,3006.4,3006.2,4.9899]
[1633058230780,0.82032557,3006.4,3006.1,9.9795]
[1633058230980,0.82032557,3006.4,3006.1,9.970897]
[1633058231185,0.82032557,3006.4,3005.9,0.003]
[1633058231186,1.294,3006.3,3005.9,0.003]
[1633058231383,0.02533253,3006.1,3005.5,0.003]
[1633058231650,1.03533253,3006.1,3005.5,0.003]
[1633058231790,1.74407113,3006.0,3004.9,4.95345593]
[1633058231984,0.75068417,3005.6,3004.9,3.33329]
[1633058232188,0.75068417,3005.6,3005.0,0.006]
[1633058232584,0.201,3005.7,3005.0,0.006]
[1633058232787,10.8292,3006.6,3005.6,0.079913]
[1633058232986,0.201,3006.8,3005.6,0.079913]
[1633058233184,0.003,3007.0,3006.0,0.079913]
[1633058233383,1.8594197,3006.9,3005.8,0.201]
[1633058233587,0.90829825,3006.3,3006.0,3.32668]
[1633058233784,1.78155381,3006.2,3006.0,3.32668]
[1633058233985,1.78155381,3006.2,3006.0,6.65336]
[1633058234184,1.78155381,3006.2,3006.0,3.32668]
[1633058234384,1.78155381,3006.2,3005.8,0.201]
[1633058234786,1.78423505,3006.2,3005.8,0.201]
[1633058234985,1.294,3006.0,3005.5,0.003]
[1633058235184,4.75103772,3005.1,3005.0,0.003]
[1633058235385,2.00663772,3005.1,3004.8,0.003]
[1633058235585,2.00663772,3005.1,3004.5,0.006]
[1633058235586,1.2056,3005.1,3004.5,0.006]
[1633058235986,1.52139072,3004.7,3004.5,0.006]